[Event "*** Titled Tuesday 3|2 Blitz"]
[Site "Chess.com"]
[Date "2016.06.07"]
[Round "6"]
[White "Cruel_Yaro"]
[Black "howitzer14"]
[Result "0-1"]
[WhiteElo "2550"]
[BlackElo "2721"]
[TimeControl "180+2"]
[EndTime "12:16:34 PDT"]
[Termination "howitzer14 won by resignation"]

1. d4 {[%clk 0:03:00.1]} 1... Nf6 {[%clk 0:02:59.1]} 2. c4 {[%clk 0:03:00.6]}
2... e6 {[%clk 0:02:49]} 3. Nf3 {[%clk 0:03:00.7]} 3... b6 {[%clk 0:02:48.2]} 4.
g3 {[%clk 0:03:00.9]} 4... Bb4+ {[%clk 0:02:47.4]} 5. Bd2 {[%clk 0:03:00.5]}
5... a5 {[%clk 0:02:45.1]} 6. Bg2 {[%clk 0:03:00.8]} 6... Bb7 {[%clk 0:02:46.6]}
7. O-O {[%clk 0:03:01.6]} 7... O-O {[%clk 0:02:48.2]} 8. Nc3 {[%clk 0:02:59]}
8... d6 {[%clk 0:02:46.9]} 9. b3 {[%clk 0:02:54.9]} 9... Nbd7 {[%clk 0:02:46.2]}
10. a3 {[%clk 0:02:54.8]} 10... Bxc3 {[%clk 0:02:46.7]} 11. Bxc3 {[%clk
0:02:56.7]} 11... Ne4 {[%clk 0:02:48.4]} 12. Bb2 {[%clk 0:02:57.4]} 12... f5
{[%clk 0:02:40]} 13. d5 {[%clk 0:02:55.5]} 13... e5 {[%clk 0:02:40]} 14. Nd2
{[%clk 0:02:53.2]} 14... Nxd2 {[%clk 0:02:37.7]} 15. Qxd2 {[%clk 0:02:54.3]}
15... Nc5 {[%clk 0:02:38.7]} 16. Qc2 {[%clk 0:02:54.6]} 16... a4 {[%clk
0:02:33.2]} 17. b4 {[%clk 0:02:55.5]} 17... Nb3 {[%clk 0:02:34.7]} 18. Rad1
{[%clk 0:02:55.5]} 18... f4 {[%clk 0:02:28.4]} 19. Be4 {[%clk 0:02:37.1]} 19...
h6 {[%clk 0:02:24.7]} 20. gxf4 {[%clk 0:02:32]} 20... Rxf4 {[%clk 0:02:25.2]}
21. f3 {[%clk 0:02:32.9]} 21... Bc8 {[%clk 0:02:11.8]} 22. e3 {[%clk 0:02:33.1]}
22... Rh4 {[%clk 0:01:45.5]} 23. Kh1 {[%clk 0:02:30.7]} 23... Qe7 {[%clk
0:01:19.2]} 24. Rg1 {[%clk 0:02:29.1]} 24... Bd7 {[%clk 0:01:20.4]} 25. Rg6
{[%clk 0:02:05.5]} 25... Be8 {[%clk 0:01:14.6]} 26. Rg3 {[%clk 0:02:02.8]} 26...
Bh5 {[%clk 0:01:09]} 27. Rdg1 {[%clk 0:02:03.5]} 27... g5 {[%clk 0:01:10]} 28.
Bg6 {[%clk 0:01:23.9]} 28... Bxg6 {[%clk 0:01:00.1]} 29. Qxg6+ {[%clk
0:01:23.7]} 29... Qg7 {[%clk 0:01:02]} 30. Qe6+ {[%clk 0:01:21]} 30... Kf8
{[%clk 0:00:46.9]} 31. f4 {[%clk 0:01:21]} 31... Re8 {[%clk 0:00:46.7]} 32. Qf5+
{[%clk 0:01:18.7]} 32... Qf7 {[%clk 0:00:47.8]} 33. Qxf7+ {[%clk 0:01:09.4]}
33... Kxf7 {[%clk 0:00:49.7]} 34. fxg5 {[%clk 0:01:10.4]} 34... h5 {[%clk
0:00:41.3]} 35. Rf3+ {[%clk 0:01:03.4]} 35... Kg7 {[%clk 0:00:41.6]} 36. Rf4
{[%clk 0:00:35.9]} 36... Rh3 {[%clk 0:00:32.1]} 37. g6 {[%clk 0:00:34.4]} 37...
Re7 {[%clk 0:00:30.7]} 38. e4 {[%clk 0:00:30.9]} 38... Nd2 {[%clk 0:00:25.2]}
39. Bc1 {[%clk 0:00:28.8]} 39... exf4 {[%clk 0:00:23.6]} 40. Bxd2 {[%clk
0:00:27.6]} 40... Rxe4 {[%clk 0:00:25]} 41. Rf1 {[%clk 0:00:21]} 41... Kxg6
{[%clk 0:00:23.4]} 42. Bxf4 {[%clk 0:00:22]} 42... Rxa3 {[%clk 0:00:23]} 43. c5
{[%clk 0:00:22.5]} 43... bxc5 {[%clk 0:00:23]} 44. bxc5 {[%clk 0:00:23.7]} 44...
Rd3 {[%clk 0:00:24.4]} 45. cxd6 {[%clk 0:00:24.3]} 45... cxd6 {[%clk 0:00:25.8]}
46. Bxd6 {[%clk 0:00:25.3]} 46... Rxd5 {[%clk 0:00:27.4]} 47. Bf8 {[%clk
0:00:24.2]} 47... Rf5 {[%clk 0:00:27.4]} 48. Rg1+ {[%clk 0:00:23.7]} 48... Rg4
{[%clk 0:00:28.5]} 0-1

[Event "*** Titled Tuesday 3|2 Blitz"]
[Site "Chess.com"]
[Date "2016.06.07"]
[Round "6"]
[White "Journey_to_GrandMaster_YT"]
[Black "sandropozo"]
[Result "1-0"]
[WhiteElo "2363"]
[BlackElo "2421"]
[TimeControl "180+2"]
[EndTime "12:16:41 PDT"]
[Termination "Journey_to_GrandMaster_YT won on time"]

1. d4 {[%clk 0:03:01.9]} 1... e6 {[%clk 0:02:59.1]} 2. Nf3 {[%clk 0:03:02]} 2...
Nf6 {[%clk 0:02:59.4]} 3. c4 {[%clk 0:02:58]} 3... Bb4+ {[%clk 0:03:00.1]} 4.
Bd2 {[%clk 0:02:58.6]} 4... c5 {[%clk 0:03:00.7]} 5. e3 {[%clk 0:02:56.1]} 5...
O-O {[%clk 0:02:58.5]} 6. Bd3 {[%clk 0:02:56]} 6... b6 {[%clk 0:03:00]} 7. O-O
{[%clk 0:02:56.2]} 7... Bb7 {[%clk 0:03:01.4]} 8. a3 {[%clk 0:02:41.3]} 8...
Bxd2 {[%clk 0:03:00]} 9. Nbxd2 {[%clk 0:02:43.2]} 9... cxd4 {[%clk 0:02:58.3]}
10. exd4 {[%clk 0:02:42.7]} 10... d5 {[%clk 0:02:59.8]} 11. c5 {[%clk
0:02:33.5]} 11... bxc5 {[%clk 0:02:57]} 12. dxc5 {[%clk 0:02:34.4]} 12... Qe7
{[%clk 0:02:58.7]} 13. b4 {[%clk 0:02:25.3]} 13... e5 {[%clk 0:03:00.1]} 14. Re1
{[%clk 0:02:19]} 14... e4 {[%clk 0:03:01.1]} 15. Bf1 {[%clk 0:02:18.6]} 15...
Ng4 {[%clk 0:02:20.7]} 16. h3 {[%clk 0:02:06.8]} 16... Nh6 {[%clk 0:02:15.9]}
17. Nd4 {[%clk 0:02:04.5]} 17... Qg5 {[%clk 0:02:12.3]} 18. b5 {[%clk
0:02:02.1]} 18... Bc8 {[%clk 0:02:11.9]} 19. Kh1 {[%clk 0:01:57.4]} 19... Nd7
{[%clk 0:02:12.9]} 20. c6 {[%clk 0:01:54.6]} 20... Ne5 {[%clk 0:02:13.4]} 21.
Re3 {[%clk 0:01:53.5]} 21... Qh4 {[%clk 0:02:08.6]} 22. Rg3 {[%clk 0:01:47.3]}
22... Bg4 {[%clk 0:01:37.7]} 23. Qb3 {[%clk 0:01:40.9]} 23... Rad8 {[%clk
0:00:58.9]} 24. Qe3 {[%clk 0:00:57.6]} 24... Rd6 {[%clk 0:00:54.3]} 25. Rc1
{[%clk 0:00:47]} 25... Rg6 {[%clk 0:00:49.2]} 26. c7 {[%clk 0:00:32.6]} 26...
Bc8 {[%clk 0:00:48.7]} 27. Rxg6 {[%clk 0:00:21]} 27... fxg6 {[%clk 0:00:41]} 28.
Qg3 {[%clk 0:00:21.9]} 28... Qh5 {[%clk 0:00:21.3]} 29. Be2 {[%clk 0:00:18]}
29... Nhg4 {[%clk 0:00:17.8]} 30. Kg1 {[%clk 0:00:17]} 30... Qg5 {[%clk
0:00:17.6]} 31. Rc2 {[%clk 0:00:11.2]} 31... e3 {[%clk 0:00:17.6]} 32. fxe3
{[%clk 0:00:11.4]} 32... Qxe3+ {[%clk 0:00:18.7]} 33. Qxe3 {[%clk 0:00:12.3]}
33... Nxe3 {[%clk 0:00:20.4]} 34. Rc5 {[%clk 0:00:13.2]} 34... Kf7 {[%clk
0:00:18.5]} 35. N2f3 {[%clk 0:00:14.2]} 35... Nd7 {[%clk 0:00:17.4]} 36. Rc3
{[%clk 0:00:12.6]} 36... Nb6 {[%clk 0:00:17.9]} 37. Rxe3 {[%clk 0:00:13.1]}
37... Bd7 {[%clk 0:00:18.3]} 38. Ne5+ {[%clk 0:00:11.1]} 38... Kf6 {[%clk
0:00:17.9]} 39. Nxd7+ {[%clk 0:00:10.1]} 39... Nxd7 {[%clk 0:00:19.1]} 40. Rf3+
{[%clk 0:00:11.4]} 40... Ke7 {[%clk 0:00:20.2]} 41. Rxf8 {[%clk 0:00:12.4]} 1-0

[Event "*** Titled Tuesday 3|2 Blitz"]
[Site "Chess.com"]
[Date "2016.06.07"]
[Round "6"]
[White "GianmarcoVaR"]
[Black "SCIM"]
[Result "0-1"]
[WhiteElo "2322"]
[BlackElo "2275"]
[TimeControl "180+2"]
[EndTime "12:16:47 PDT"]
[Termination "SCIM won by resignation"]

1. d4 {[%clk 0:03:01.9]} 1... Nf6 {[%clk 0:02:59.7]} 2. c4 {[%clk 0:03:02.2]}
2... g6 {[%clk 0:02:59.8]} 3. g3 {[%clk 0:03:03.3]} 3... c6 {[%clk 0:02:59.3]}
4. Bg2 {[%clk 0:03:05.2]} 4... d5 {[%clk 0:03:00.6]} 5. b3 {[%clk 0:03:03.7]}
5... Bg7 {[%clk 0:02:59.5]} 6. Nf3 {[%clk 0:03:04.5]} 6... O-O {[%clk
0:03:00.7]} 7. O-O {[%clk 0:03:05.3]} 7... a5 {[%clk 0:03:01.1]} 8. Nc3 {[%clk
0:02:57]} 8... Bf5 {[%clk 0:02:52]} 9. Bb2 {[%clk 0:02:54.2]} 9... Ne4 {[%clk
0:02:49.5]} 10. Rc1 {[%clk 0:02:44]} 10... Nxc3 {[%clk 0:02:42.5]} 11. Bxc3
{[%clk 0:02:41.9]} 11... Be4 {[%clk 0:02:43]} 12. e3 {[%clk 0:02:10.5]} 12... a4
{[%clk 0:02:38.6]} 13. Qe2 {[%clk 0:02:09.8]} 13... Nd7 {[%clk 0:02:34.4]} 14.
Bh3 {[%clk 0:02:02.8]} 14... axb3 {[%clk 0:02:26.9]} 15. axb3 {[%clk 0:02:03.6]}
15... Ra3 {[%clk 0:02:26.9]} 16. Nd2 {[%clk 0:02:03.7]} 16... Bf5 {[%clk
0:02:22.2]} 17. Bxf5 {[%clk 0:02:03.7]} 17... gxf5 {[%clk 0:02:22.3]} 18. Ra1
{[%clk 0:02:03.4]} 18... Rxa1 {[%clk 0:02:21.5]} 19. Rxa1 {[%clk 0:02:05.3]}
19... Nf6 {[%clk 0:02:21.9]} 20. Ba5 {[%clk 0:01:49.5]} 20... Qd7 {[%clk
0:02:20.5]} 21. Bb4 {[%clk 0:01:48]} 21... Ne4 {[%clk 0:02:09.6]} 22. Ra7 {[%clk
0:01:47.8]} 22... Qc7 {[%clk 0:02:01.7]} 23. Nxe4 {[%clk 0:01:43.3]} 23... fxe4
{[%clk 0:02:01.3]} 24. Qa2 {[%clk 0:01:39.2]} 24... h5 {[%clk 0:01:46.9]} 25.
Qa5 {[%clk 0:01:37.6]} 25... Qd7 {[%clk 0:01:42.6]} 26. cxd5 {[%clk 0:00:59.3]}
26... cxd5 {[%clk 0:01:39.4]} 27. Ra8 {[%clk 0:00:58]} 27... h4 {[%clk
0:01:34.2]} 28. Rxf8+ {[%clk 0:00:55.5]} 28... Bxf8 {[%clk 0:01:33.4]} 29. Qa1
{[%clk 0:00:54.5]} 29... Qg4 {[%clk 0:01:30.4]} 30. Qf1 {[%clk 0:00:52.5]} 30...
h3 {[%clk 0:01:30.3]} 31. f3 {[%clk 0:00:31.8]} 31... exf3 {[%clk 0:01:26.8]}
32. Kf2 {[%clk 0:00:29.8]} 32... Bh6 {[%clk 0:01:19.6]} 33. Qd1 {[%clk
0:00:29.4]} 33... Qe4 {[%clk 0:00:57.4]} 34. Bd2 {[%clk 0:00:11.9]} 34... Qd3
{[%clk 0:00:39.5]} 35. Kxf3 {[%clk 0:00:10.1]} 35... Bxe3 {[%clk 0:00:37.4]} 36.
Kg4 {[%clk 0:00:02.6]} 36... Bxd2 {[%clk 0:00:26.8]} 37. Kxh3 {[%clk 0:00:03.6]}
37... Qf5+ {[%clk 0:00:25.6]} 38. Kg2 {[%clk 0:00:04.3]} 38... Qe4+ {[%clk
0:00:26.2]} 39. Kh3 {[%clk 0:00:05.4]} 39... Bg5 {[%clk 0:00:23.9]} 40. Qh5
{[%clk 0:00:03.3]} 40... Qf5+ {[%clk 0:00:22.2]} 41. Kg2 {[%clk 0:00:04.3]}
41... Qe4+ {[%clk 0:00:22.9]} 42. Kh3 {[%clk 0:00:05]} 42... Qh7 {[%clk
0:00:22.6]} 43. Kg4 {[%clk 0:00:05.1]} 43... Qxh5+ {[%clk 0:00:22.6]} 44. Kxh5
{[%clk 0:00:06.6]} 44... Be3 {[%clk 0:00:23.9]} 45. Kg4 {[%clk 0:00:08]} 45...
Bxd4 {[%clk 0:00:24.9]} 0-1

[Event "*** Titled Tuesday 3|2 Blitz"]
[Site "Chess.com"]
[Date "2016.06.07"]
[Round "6"]
[White "TomsKantans"]
[Black "WanderingPuppet"]
[Result "1-0"]
[WhiteElo "2449"]
[BlackElo "2272"]
[TimeControl "180+2"]
[EndTime "12:16:48 PDT"]
[Termination "TomsKantans won on time"]

1. e4 {[%clk 0:03:00.1]} 1... c5 {[%clk 0:02:59.2]} 2. Nf3 {[%clk 0:03:00.6]}
2... d6 {[%clk 0:03:00.7]} 3. d4 {[%clk 0:03:01.2]} 3... cxd4 {[%clk 0:03:02.6]}
4. Nxd4 {[%clk 0:03:03]} 4... Nf6 {[%clk 0:03:04.1]} 5. Nc3 {[%clk 0:03:04.2]}
5... a6 {[%clk 0:03:05.8]} 6. Bg5 {[%clk 0:03:02.1]} 6... e6 {[%clk 0:03:07.2]}
7. f4 {[%clk 0:03:02.6]} 7... Bd7 {[%clk 0:03:08.8]} 8. Qf3 {[%clk 0:03:03.1]}
8... Nc6 {[%clk 0:03:08.4]} 9. O-O-O {[%clk 0:02:59]} 9... Qa5 {[%clk
0:03:09.2]} 10. Bxf6 {[%clk 0:02:57.1]} 10... gxf6 {[%clk 0:03:09.9]} 11. Nb3
{[%clk 0:02:55.7]} 11... Qc7 {[%clk 0:03:11.3]} 12. Kb1 {[%clk 0:02:54.3]} 12...
O-O-O {[%clk 0:03:10.6]} 13. g3 {[%clk 0:02:54.5]} 13... h5 {[%clk 0:03:11.5]}
14. Bg2 {[%clk 0:02:52.3]} 14... Kb8 {[%clk 0:03:13]} 15. Rhe1 {[%clk
0:02:51.1]} 15... Rc8 {[%clk 0:03:14.2]} 16. Ne2 {[%clk 0:02:37]} 16... Be7
{[%clk 0:02:58.1]} 17. c3 {[%clk 0:02:36.6]} 17... Na5 {[%clk 0:02:45.3]} 18.
Nxa5 {[%clk 0:02:33.6]} 18... Qxa5 {[%clk 0:02:47.2]} 19. Nd4 {[%clk 0:02:33.6]}
19... Bc6 {[%clk 0:02:40.6]} 20. Qe2 {[%clk 0:02:32.7]} 20... h4 {[%clk
0:02:30.6]} 21. g4 {[%clk 0:02:31.3]} 21... h3 {[%clk 0:02:30.6]} 22. Bh1 {[%clk
0:02:29.2]} 22... Qb6 {[%clk 0:02:21]} 23. Rd3 {[%clk 0:02:20.4]} 23... Bb5
{[%clk 0:02:16.1]} 24. Nxb5 {[%clk 0:02:19.5]} 24... Qxb5 {[%clk 0:02:18]} 25.
Rg1 {[%clk 0:01:58.4]} 25... Rc5 {[%clk 0:02:14.1]} 26. Rgg3 {[%clk 0:01:41.9]}
26... Rhc8 {[%clk 0:01:58.3]} 27. Qd1 {[%clk 0:01:32]} 27... a5 {[%clk
0:01:24.9]} 28. Rxh3 {[%clk 0:01:20.4]} 28... a4 {[%clk 0:01:26]} 29. a3 {[%clk
0:01:21.5]} 29... Rc4 {[%clk 0:01:06]} 30. Ka2 {[%clk 0:01:02.4]} 30... R8c6
{[%clk 0:00:49.5]} 31. Bg2 {[%clk 0:00:40.9]} 31... Rb6 {[%clk 0:00:47.7]} 32.
Rd2 {[%clk 0:00:38.3]} 32... Qc5 {[%clk 0:00:37.3]} 33. Rh7 {[%clk 0:00:28]}
33... d5 {[%clk 0:00:28.4]} 34. Rxf7 {[%clk 0:00:21.1]} 34... Rxb2+ {[%clk
0:00:07.1]} 35. Kxb2 {[%clk 0:00:21.3]} 35... Qxa3+ {[%clk 0:00:08.7]} 36. Kb1
{[%clk 0:00:20.9]} 36... Rxc3 {[%clk 0:00:07]} 37. Rb2 {[%clk 0:00:18.4]} 37...
Rb3 {[%clk 0:00:02.9]} 38. Qe2 {[%clk 0:00:07.3]} 38... Bc5 {[%clk 0:00:02.4]}
39. Rxb3 {[%clk 0:00:03.7]} 1-0

[Event "*** Titled Tuesday 3|2 Blitz"]
[Site "Chess.com"]
[Date "2016.06.07"]
[Round "6"]
[White "dretch"]
[Black "vovkcoach"]
[Result "1-0"]
[WhiteElo "2598"]
[BlackElo "2501"]
[TimeControl "180+2"]
[EndTime "12:17:03 PDT"]
[Termination "dretch won by resignation"]

1. d4 {[%clk 0:03:01.9]} 1... Nf6 {[%clk 0:02:58.2]} 2. c4 {[%clk 0:03:02.5]}
2... e6 {[%clk 0:02:59.5]} 3. Nc3 {[%clk 0:03:03.6]} 3... Bb4 {[%clk 0:03:00]}
4. Qc2 {[%clk 0:03:05.3]} 4... O-O {[%clk 0:03:01]} 5. e4 {[%clk 0:03:05.4]}
5... d6 {[%clk 0:03:01.6]} 6. a3 {[%clk 0:03:05.7]} 6... Bxc3+ {[%clk
0:03:02.1]} 7. bxc3 {[%clk 0:03:07.6]} 7... e5 {[%clk 0:03:01.1]} 8. Bd3 {[%clk
0:03:09.3]} 8... Re8 {[%clk 0:03:01.6]} 9. Ne2 {[%clk 0:03:10.5]} 9... Nc6
{[%clk 0:02:58.2]} 10. O-O {[%clk 0:03:11.3]} 10... b6 {[%clk 0:02:59.4]} 11. f4
{[%clk 0:03:12]} 11... h6 {[%clk 0:02:49.8]} 12. fxe5 {[%clk 0:03:04.9]} 12...
dxe5 {[%clk 0:02:49.6]} 13. d5 {[%clk 0:03:05.6]} 13... Na5 {[%clk 0:02:49.4]}
14. Ng3 {[%clk 0:03:04.4]} 14... Nb7 {[%clk 0:02:47.9]} 15. Bxh6 {[%clk
0:02:11.2]} 15... gxh6 {[%clk 0:02:47.3]} 16. Qd2 {[%clk 0:02:07.5]} 16... Ng4
{[%clk 0:02:15.1]} 17. h3 {[%clk 0:02:07]} 17... Qg5 {[%clk 0:01:57.5]} 18.
Qxg5+ {[%clk 0:02:05.2]} 18... hxg5 {[%clk 0:01:59.4]} 19. hxg4 {[%clk
0:02:02.6]} 19... Bxg4 {[%clk 0:01:58.3]} 20. Rf6 {[%clk 0:02:00.5]} 20... Nd6
{[%clk 0:01:56.6]} 21. Raf1 {[%clk 0:01:29.1]} 21... Re7 {[%clk 0:01:50.1]} 22.
R6f2 {[%clk 0:01:00.9]} 22... a5 {[%clk 0:01:42.8]} 23. Be2 {[%clk 0:00:59.6]}
23... Bxe2 {[%clk 0:01:35.7]} 24. Rxe2 {[%clk 0:01:00]} 24... Nxc4 {[%clk
0:01:33.7]} 25. Rf5 {[%clk 0:01:00.5]} 25... Nd6 {[%clk 0:01:00.2]} 26. Rxg5+
{[%clk 0:01:00.1]} 26... Kf8 {[%clk 0:01:01.7]} 27. Rf2 {[%clk 0:00:57]} 27...
Rd8 {[%clk 0:00:46.4]} 28. Rf6 {[%clk 0:00:56.1]} 28... Ke8 {[%clk 0:00:46.7]}
29. Rg7 {[%clk 0:00:11.9]} 29... a4 {[%clk 0:00:40.3]} 30. Nf5 {[%clk 0:00:08]}
30... Nxe4 {[%clk 0:00:22.8]} 31. Rc6 {[%clk 0:00:05]} 31... Rxd5 {[%clk
0:00:19.9]} 32. Nxe7 {[%clk 0:00:06.1]} 32... Kxe7 {[%clk 0:00:20.3]} 33. Rxc7+
{[%clk 0:00:07.5]} 33... Kd6 {[%clk 0:00:19.4]} 34. Rgxf7 {[%clk 0:00:08.9]}
34... Nc5 {[%clk 0:00:20.2]} 35. Rh7 {[%clk 0:00:09]} 35... Rd3 {[%clk
0:00:19.2]} 36. Rcf7 {[%clk 0:00:09.9]} 36... Rxc3 {[%clk 0:00:19.9]} 37. Rf3
{[%clk 0:00:11]} 37... Rb3 {[%clk 0:00:18.3]} 38. Rh6+ {[%clk 0:00:09.7]} 38...
Kd5 {[%clk 0:00:11.7]} 39. Rxb3 {[%clk 0:00:10.4]} 39... axb3 {[%clk 0:00:13.6]}
40. Rxb6 {[%clk 0:00:12]} 40... Kc4 {[%clk 0:00:15]} 41. g4 {[%clk 0:00:13.4]}
41... Nd3 {[%clk 0:00:10]} 42. g5 {[%clk 0:00:13.9]} 42... e4 {[%clk 0:00:11.5]}
43. g6 {[%clk 0:00:14.7]} 43... e3 {[%clk 0:00:11.6]} 44. Kf1 {[%clk 0:00:09.8]}
44... Nf4 {[%clk 0:00:07]} 45. g7 {[%clk 0:00:10]} 45... b2 {[%clk 0:00:06.3]}
46. g8=Q+ {[%clk 0:00:09.6]} 1-0

[Event "*** Titled Tuesday 3|2 Blitz"]
[Site "Chess.com"]
[Date "2016.06.07"]
[Round "6"]
[White "Alexander_Moskalenko"]
[Black "GMHess"]
[Result "1-0"]
[WhiteElo "2667"]
[BlackElo "2574"]
[TimeControl "180+2"]
[EndTime "12:17:30 PDT"]
[Termination "Alexander_Moskalenko won by resignation"]

1. e4 {[%clk 0:03:01.9]} 1... e5 {[%clk 0:03:00.4]} 2. Nf3 {[%clk 0:03:03]} 2...
Nc6 {[%clk 0:03:01.7]} 3. Nc3 {[%clk 0:03:04.6]} 3... Nf6 {[%clk 0:03:02]} 4. d4
{[%clk 0:03:04.8]} 4... exd4 {[%clk 0:03:01.1]} 5. Nxd4 {[%clk 0:03:05.8]} 5...
Bb4 {[%clk 0:02:46.9]} 6. Nxc6 {[%clk 0:03:06.8]} 6... bxc6 {[%clk 0:02:48.8]}
7. Bd3 {[%clk 0:03:07.4]} 7... O-O {[%clk 0:02:45.2]} 8. O-O {[%clk 0:03:07.9]}
8... d5 {[%clk 0:02:46.9]} 9. exd5 {[%clk 0:03:07.7]} 9... cxd5 {[%clk
0:02:46.3]} 10. h3 {[%clk 0:03:08.6]} 10... c6 {[%clk 0:02:45.7]} 11. Qf3 {[%clk
0:03:09]} 11... Rb8 {[%clk 0:02:37.8]} 12. Ne2 {[%clk 0:03:06.6]} 12... Bd6
{[%clk 0:02:30.4]} 13. b3 {[%clk 0:03:07.7]} 13... Nd7 {[%clk 0:01:55.9]} 14.
Bf4 {[%clk 0:03:00.3]} 14... Qf6 {[%clk 0:01:34.2]} 15. Bxd6 {[%clk 0:02:56.4]}
15... Qxd6 {[%clk 0:01:36.1]} 16. Rfe1 {[%clk 0:02:56.4]} 16... Ne5 {[%clk
0:01:33.7]} 17. Qg3 {[%clk 0:02:57]} 17... Qf6 {[%clk 0:01:15.2]} 18. c3 {[%clk
0:02:51.5]} 18... Nxd3 {[%clk 0:01:01]} 19. Qxd3 {[%clk 0:02:47.1]} 19... Rb6
{[%clk 0:00:53.2]} 20. Qd4 {[%clk 0:02:42.3]} 20... Qxd4 {[%clk 0:00:48.5]} 21.
cxd4 {[%clk 0:02:43.3]} 21... Rb4 {[%clk 0:00:31.3]} 22. Red1 {[%clk 0:02:36.4]}
22... Re8 {[%clk 0:00:28.1]} 23. Nc3 {[%clk 0:02:37.5]} 23... h5 {[%clk
0:00:24.1]} 24. f3 {[%clk 0:02:38.3]} 24... Re6 {[%clk 0:00:17.9]} 25. Kf2
{[%clk 0:02:39.2]} 25... g5 {[%clk 0:00:18.8]} 26. Rac1 {[%clk 0:02:34.2]} 26...
Rf6 {[%clk 0:00:19.6]} 27. Nxd5 {[%clk 0:02:30.3]} 27... cxd5 {[%clk 0:00:18.4]}
28. Rxc8+ {[%clk 0:02:31.2]} 28... Kg7 {[%clk 0:00:20.1]} 29. Rc5 {[%clk
0:02:24.3]} 29... Rd6 {[%clk 0:00:17.4]} 30. Ke3 {[%clk 0:02:24.6]} 30... Rb7
{[%clk 0:00:17.4]} 31. Kd2 {[%clk 0:02:25.6]} 31... Ra6 {[%clk 0:00:16.7]} 32.
Rc2 {[%clk 0:02:10.9]} 32... g4 {[%clk 0:00:16.2]} 33. hxg4 {[%clk 0:02:10.9]}
33... hxg4 {[%clk 0:00:18.1]} 34. Re1 {[%clk 0:02:08]} 34... gxf3 {[%clk
0:00:18]} 35. gxf3 {[%clk 0:02:09.9]} 35... Rg6 {[%clk 0:00:19.5]} 36. Rc5
{[%clk 0:02:02]} 36... Rd7 {[%clk 0:00:18.5]} 37. Ra5 {[%clk 0:01:50.2]} 37...
Rg3 {[%clk 0:00:19]} 38. Ke3 {[%clk 0:01:45.9]} 38... Rg2 {[%clk 0:00:18.2]} 39.
Kf4 {[%clk 0:01:33.9]} 39... Rd2 {[%clk 0:00:19.3]} 40. Rg1+ {[%clk 0:01:25.2]}
40... Kf6 {[%clk 0:00:18.8]} 41. Ra6+ {[%clk 0:01:25.4]} 41... Ke7 {[%clk
0:00:20]} 42. Ke3 {[%clk 0:01:15.3]} 42... Rb2 {[%clk 0:00:20.9]} 43. Rg5 {[%clk
0:01:16.5]} 43... Kf8 {[%clk 0:00:17.5]} 44. Re5 {[%clk 0:01:16.8]} 44... Rc7
{[%clk 0:00:14]} 45. Rxd5 {[%clk 0:00:56.8]} 45... Rc3+ {[%clk 0:00:14.9]} 46.
Kf4 {[%clk 0:00:58.4]} 46... Rf2 {[%clk 0:00:16.4]} 47. Rd7 {[%clk 0:00:58.7]}
47... Rfxf3+ {[%clk 0:00:14.2]} 48. Ke4 {[%clk 0:00:59]} 48... Rce3+ {[%clk
0:00:11.3]} 49. Kd5 {[%clk 0:00:59.9]} 49... Rf5+ {[%clk 0:00:10.9]} 50. Kc4
{[%clk 0:01:00.7]} 50... Re2 {[%clk 0:00:11.2]} 51. Raxa7 {[%clk 0:01:01.6]}
51... Rff2 {[%clk 0:00:11.1]} 52. a4 {[%clk 0:01:02.2]} 52... Kg7 {[%clk
0:00:11.7]} 53. a5 {[%clk 0:01:03.5]} 53... Ra2 {[%clk 0:00:12.5]} 54. b4 {[%clk
0:01:04.7]} 54... Kg6 {[%clk 0:00:13.8]} 55. a6 {[%clk 0:01:04.8]} 55... f5
{[%clk 0:00:13.4]} 56. b5 {[%clk 0:01:04.9]} 56... f4 {[%clk 0:00:14.3]} 57.
Rg7+ {[%clk 0:01:04.8]} 57... Kf5 {[%clk 0:00:15.1]} 58. Raf7+ {[%clk
0:01:06.4]} 58... Ke4 {[%clk 0:00:15.9]} 59. Re7+ {[%clk 0:01:08.3]} 59... Kf3
{[%clk 0:00:17]} 60. Kc5 {[%clk 0:01:07.3]} 60... Rfc2+ {[%clk 0:00:17]} 61. Kb6
{[%clk 0:01:08.5]} 61... Rd2 {[%clk 0:00:12.4]} 62. Rd7 {[%clk 0:01:01.5]} 62...
Ke3 {[%clk 0:00:12.6]} 63. Rge7+ {[%clk 0:01:00.5]} 63... Kd3 {[%clk 0:00:14]}
64. Rf7 {[%clk 0:01:01.5]} 64... Ke3 {[%clk 0:00:13.9]} 65. Rf8 {[%clk 0:01:03]}
65... Rdb2 {[%clk 0:00:12.9]} 66. a7 {[%clk 0:01:03.6]} 66... f3 {[%clk
0:00:14.5]} 67. Re7+ {[%clk 0:01:04.6]} 67... Kf2 {[%clk 0:00:12.3]} 68. a8=Q
{[%clk 0:01:05.5]} 1-0